[Event "45th FIDE Olympiad 2024"]
[Site "Budapest"]
[Date "2024.09.16"]
[Round "6.107"]
[White "Pinto, Daniel"]
[Black "Quintiliano, Renato R."]
[Result "0-1"]
[ECO "B50"]
[WhiteElo "2273"]
[BlackElo "2499"]
[Annotator "TA"]
[PlyCount "82"]
[EventDate "2024.09.05"]
[EventType "team-tourn"]
[EventCountry "HUN"]
[SourceTitle "playchess.com"]
[Source "ChessBase"]
[SourceQuality "1"]
[WhiteTeam "Bolivia"]
[BlackTeam "Brazil"]
[WhiteTeamCountry "BOL"]
[BlackTeamCountry "BRA"]
[TimeControl "40/5400+30:1800+30"]

{[%evp 11,82,11,7,-3,-6,-8,-10,-16,-19,-26,-15,-40,-32,-34,-30,-58,-43,-45,-50,-46,-41,-63,-62,-59,-76,-45,-52,-85,-79,-89,-80,-89,-49,-102,-81,-133,-132,-133,-133,-129,-130,-125,-121,-123,-133,-143,-131,-226,-219,-227,-216,-250,-261,-229,-225,-229,-203,-373,-366,-2391,-4950,-5002,-3290,-3448,-2800,-2346,-2299,-2393,-2393,-1856,-1663,-29992,-29993]} 1. e4 c5 2. Nf3 d6 3. c3 Nf6 4. Be2 g6 5. O-O Bg7 6. Bb5+ Nc6 7. Re1 O-O 8. h3 e5 9. d4 {The position is equal.} exd4 10. cxd4 cxd4 11. Nxd4 Nxd4 12. Qxd4 a6 13. Ba4 Be6 14. Qd1 d5 15. e5 Ne4 {[%cal Od8h4] Repels Bg5} 16. Nd2 Bxe5 {Black is more active.} 17. Nxe4 dxe4 18. Rxe4 Bg7 19. Qe2 Bd5 20. Re7 Qa5 21. Bd7 Rad8 {[%cal Oa5c5]} ({Reject} 21... Bxa2 22. Bg4 (22. b4 Qd8 $15) 22... b6 23. Bd2 $11) 22. Bd2 {Black continues to play with concentration.} ({White should play} 22. Bf4 $1 $15) 22... Qb6 {[%cal Ob6d6] Hoping for ...Qd6!} 23. Bc3 {[#]} (23. Qe1 $142) 23... Bxc3 $1 $17 24. bxc3 {[#]} Bxg2 $1 {[%mdl 512]} 25. Kxg2 {[#] Black must now prevent Qe5.} Rxd7 $1 {[%mdl 512]} 26. Rxd7 Qc6+ 27. Qf3 Qxd7 {[%mdl 4096] Endgame. KQR-KQR} 28. Rd1 Qc7 29. Rb1 (29. Qf6 $17) 29... b5 $19 30. Qf6 Qb7+ 31. Kg1 Qc8 32. Kg2 Qc4 {...Qe4+ is the strong threat.} 33. Rb2 Qd5+ 34. Kg1 $2 (34. Qf3 {was called for.} Qg5+ 35. Qg3) 34... Re8 35. Qd4 $2 (35. f3) 35... Re1+ 36. Kh2 Qh1+ 37. Kg3 Rg1+ 38. Kf4 Qxh3 39. Qd8+ Kg7 {( -> ...Rg4+)} 40. Qd4+ f6 41. f3 {Dodges Rg4+} Re1 {Weighted Error Value: White=0.54/Black=0.04 (flawless) .  Mistake:       	White=5     	---        Inaccurate:     	White=2     	Black=1      OK:         	White=4     	Black=13     Best:        	White=1     	Black=3      Strong:       	---       	Black=1      Brilliant:      	---       	Black=1} 0-1

[Event "45th FIDE Olympiad 2024"]
[Site "Budapest"]
[Date "2024.09.16"]
[Round "6.108"]
[White "Di Berardino, Diego Rafael"]
[Black "Montevilla Cahuasa, Jonathan I."]
[Result "1/2-1/2"]
[ECO "E11"]
[WhiteElo "2472"]
[BlackElo "2064"]
[Annotator "TA"]
[PlyCount "248"]
[EventDate "2024.09.05"]
[EventType "team-tourn"]
[EventCountry "HUN"]
[SourceTitle "playchess.com"]
[Source "ChessBase"]
[SourceQuality "1"]
[WhiteTeam "Brazil"]
[BlackTeam "Bolivia"]
[WhiteTeamCountry "BRA"]
[BlackTeamCountry "BOL"]
[TimeControl "40/5400+30:1800+30"]

{[%evp 10,248,30,16,15,18,14,11,16,6,3,8,9,22,22,21,46,46,59,38,41,0,18,9,37,22,36,33,55,24,56,61,47,47,75,41,32,27,21,23,27,28,33,37,45,8,63,52,90,31,90,83,90,90,90,83,90,8,12,0,0,0,12,0,12,0,0,0,12,0,0,0,111,0,0,0,12,0,0,0,12,0,111,0,12,12,12,0,111,0,12,12,12,0,111,0,12,0,111,0,111,0,111,0,111,0,0,0,0,0,0,0,8,8,90,90,90,90,90,90,90,0,90,0,90,8,8,8,90,8,90,8,90,90,90,90,90,90,90,90,90,90,90,0,90,90,90,0,0,0,90,0,90,0,0,0,90,0,0,0,0,0,0,0,0,0,0,0,0,0,0,0,0,0,0,0,90,0,90,90,90,0,90,0,90,0,90,0,0,0,90,90,90,90,90,0,0,0,0,0,0,0,0,0,0,0,0,0,0,0,8,8,8,8,8,8,8,8,8,0,8,8,8,8,8,8,8,8,8,8,8,8,8,8,8,0,0,0,0,0,0]} 1. d4 Nf6 2. c4 e6 3. Nf3 Bb4+ 4. Bd2 Qe7 5. g3 Bxd2+ 6. Qxd2 Nc6 7. Nc3 d5 8. Bg2 dxc4 9. Ne5 Nxe5 10. dxe5 Nd7 11. Qd4 O-O 12. O-O {[%cal Oa1c1][%mdl 1024] White has compensation.} Nb6 13. Rfd1 Rb8 14. a4 a5 15. Nb5 Bd7 16. Nxc7 Bxa4 17. Qd6 ({Much weaker is} 17. Qxb6 Bxd1 18. Rxd1 Rbc8 $15) 17... Qd7 18. Qxd7 Bxd7 19. Rd6 Rfc8 20. Rxb6 Rxc7 21. Rxa5 g6 22. Ra7 {White is more active.} Bc6 23. Bxc6 Rxc6 24. Rbxb7 Rxb7 25. Rxb7 $14 {[%mdl 4096] Endgame. KR-KR} c3 26. bxc3 Rxc3 27. f4 h5 (27... h6 $11) 28. Kf2 Kg7 {[%cal Oh5h4]} 29. Rd7 (29. h4 $16) 29... Ra3 (29... h4 $14) 30. Rd3 Ra1 31. h3 Ra4 {[%cal Oh5h4]} 32. Kf3 Ra1 33. g4 (33. Rc3 $16) 33... hxg4+ 34. hxg4 Rf1+ 35. Kg3 Rg1+ 36. Kh3 Re1 37. Rd2 Rf1 38. Kg3 Rg1+ 39. Kf3 Rf1+ 40. Ke4 Rg1 (40... g5 $1 $11) 41. Kf3 ({White has to play} 41. g5 $1 $16) 41... Rf1+ $11 42. Kg3 Rg1+ 43. Kh3 Rf1 44. Rd4 Re1 45. Re4 Rg1 (45... g5 $11) 46. Re3 (46. g5 $1 $16) 46... Rf1 47. Rf3 Re1 48. Rf2 Ra1 (48... g5 $11) 49. Kg3 (49. g5 $1 $16) 49... Ra3+ 50. Rf3 Ra2 51. Kf2 Ra4 (51... g5 $11) 52. Kg3 (52. g5 $1 $16) 52... Ra2 53. Re3 Ra1 (53... g5 $1 $11) 54. Re4 (54. g5 $1 $16) 54... Ra3+ (54... g5 $11) 55. Kf2 (55. Kh4 $1 $16) 55... Rb3 (55... g5 $1 $11) 56. Ra4 (56. g5 $1 $16) 56... Rb5 (56... g5 $1 $11) 57. Ra7 (57. g5 $1 $16) 57... g5 58. e3 gxf4 59. exf4 Rb2+ 60. Kg3 Rb3+ 61. Kh4 Rf3 (61... Kg6 $11) 62. Kg5 $16 {Strongly threatening f5.} Re3 63. Ra5 Re1 64. Ra3 $1 Re2 65. Kh4 (65. Rb3 $16) 65... Re1 (65... Kg6 $11) 66. Ra4 (66. Kh5 $1 $16) 66... Re3 (66... Kg6 $11) 67. Rc4 (67. Kg5 $16) 67... Kg6 $11 68. Rc6 Kg7 (68... Re1 $11) 69. Ra6 (69. Kg5 $16) 69... Kh6 (69... Kg6 $1 $11) 70. Ra8 ({White should try} 70. g5+ $16 Kg6 71. Kg4) 70... Kg7 (70... Kg6 $1 $11) 71. Kg5 Re1 72. Ra5 Re3 73. Ra1 Re2 74. Rf1 Re4 75. Rf3 Re1 76. Kh4 (76. Rb3 $16) 76... Rh1+ (76... Kg6 $11) 77. Rh3 $16 Rg1 78. Re3 (78. Kg5 $16) 78... Kg6 $11 79. Rf3 Kg7 (79... Re1 $11) 80. Rf2 (80. Rg3 $1 $16 {[%cal Rg3g1]} Rc1 81. Kg5) 80... Ra1 (80... Kh6 $11) 81. Kg3 (81. Kg5 $16) 81... Ra3+ 82. Rf3 Ra5 (82... Ra1 $11) 83. Re3 (83. g5 $1 $16) 83... Kg6 84. Kf3 Ra1 85. Kg2 Ra2+ 86. Kg3 Ra1 87. Rc3 Rg1+ 88. Kh3 Rf1 89. Rc4 Rf3+ 90. Kg2 $1 Ra3 91. Rc6 Kg7 92. Rd6 Re3 (92... Kg6 $11) 93. Kf2 (93. g5 $16) 93... Re4 (93... Ra3 $11) 94. Kf3 $16 Re1 95. Ra6 ({Better is} 95. g5 $16) 95... Kh7 (95... Rb1 $11) 96. Rb6 ({White should play} 96. g5 $16) 96... Kg7 {[#]} (96... Rf1+ $11 97. Kg3 Kg6) 97. Rb8 (97. g5 $1 $16) 97... Kh7 (97... Ra1 $1 $11 {keeps the balance.}) 98. Kf2 (98. g5 $16) 98... Re4 $11 99. Kg3 Kg7 (99... Re3+ $1 $11 {remains equal.} 100. Kf2 Rc3) 100. Rb1 Re3+ 101. Kf2 Ra3 {[#]} 102. Rb5 (102. g5 $1 $16) 102... Ra2+ {The position is equal.} 103. Kg3 Ra3+ 104. Kh4 Rf3 105. Kg5 Re3 106. f5 exf5 107. Kxf5 Rf3+ 108. Kg5 Re3 109. Kf4 Ra3 110. Rb7 Ra6 111. Kf5 Re6 112. Rd7 Rb6 113. Rd5 Rb1 114. Rd7 Rb6 115. Rd6 Rb1 116. e6 fxe6+ 117. Rxe6 Rb5+ 118. Kf4 Ra5 119. Kg3 Rb5 120. Ra6 Rc5 121. Kh4 Rb5 122. g5 Rb1 123. Ra7+ Kg6 124. Ra6+ Kg7 {Weighted Error Value: White=0.30/Black=0.33.  Mistake:       	White=26    	Black=26     Inaccurate:     	White=4     	Black=4      OK:         	White=21    	Black=37     Best:        	White=6     	Black=9      Strong:       	White=2     	---} 1/2-1/2

[Event "45th FIDE Olympiad 2024"]
[Site "Budapest"]
[Date "2024.09.16"]
[Round "6.109"]
[White "Grandelius, Nils"]
[Black "Salem, A.R. Saleh"]
[Result "1/2-1/2"]
[ECO "E73"]
[WhiteElo "2653"]
[BlackElo "2631"]
[Annotator "RC"]
[PlyCount "174"]
[EventDate "2024.09.05"]
[EventType "team-tourn"]
[EventCountry "HUN"]
[SourceTitle "playchess.com"]
[Source "ChessBase"]
[SourceQuality "1"]
[WhiteTeam "Sweden"]
[BlackTeam "United Arab Emirates"]
[WhiteTeamCountry "SWE"]
[BlackTeamCountry "UAE"]
[TimeControl "40/5400+30:1800+30"]

1. d4 Nf6 2. c4 g6 3. Nc3 Bg7 4. e4 d6 5. Be2 O-O 6. Be3 Na6 7. h4 e5 8. d5 Nc5 9. Qc2 c6 10. h5 cxd5 11. cxd5 Qa5 12. h6 Bh8 13. f3 Bd7 14. Rb1 Na4 15. Qd2 Nxc3 16. bxc3 Qc7 17. c4 Bc8 18. g4 Nd7 19. Nh3 Bf6 20. Nf2 Bd8 21. Nd3 Qa5 22. Kf2 Qxd2 23. Bxd2 Bb6+ 24. Be3 f5 25. gxf5 gxf5 26. Bxb6 axb6 27. Ke3 Rxa2 28. Ra1 f4+ 29. Kf2 Rxa1 30. Rxa1 Kf7 31. Bf1 Ke7 32. Bh3 Nf6 33. Bxc8 Rxc8 34. Ra4 Kd7 35. Rb4 Kc7 36. Nb2 Nd7 37. Ra4 Rg8 38. Ra1 Rg6 39. Na4 Rxh6 40. Nc3 Nc5 41. Nb5+ Kd7 42. Ra8 Rg6 43. Rh8 h6 44. Na7 Nd3+ 45. Ke2 Nb2 46. Rh7+ Ke8 47. Rxb7 Rg2+ 48. Kf1 Rc2 49. Nb5 Nxc4 50. Rh7 Rb2 51. Nc7+ Kf8 52. Rxh6 Nd2+ 53. Ke2 Nxe4+ 54. Kd1 Kg7 55. Re6 Ng5 56. Rxd6 Nxf3 57. Re6 Kf7 58. Kc1 Rb3 59. d6 Rd3 60. Re7+ Kf6 61. Ne8+ Kf5 62. d7 Ng5 63. Kc2 Rd4 64. Rg7 f3 65. Nc7 f2 66. Rxg5+ Kxg5 67. Ne6+ Kg4 68. Nxd4 f1=Q 69. d8=Q Qc4+ 70. Kd2 exd4 71. Qxb6 Qc3+ 72. Kd1 Qd3+ 73. Ke1 Qe4+ 74. Kd2 Qf4+ 75. Ke2 Qe5+ 76. Kd2 Qe3+ 77. Kd1 Qe4 78. Kd2 Qf4+ 79. Ke2 Qe5+ 80. Kd2 Qh2+ 81. Kd1 Qg1+ 82. Kd2 Qf2+ 83. Kd1 Qf3+ 84. Kd2 Qc3+ 85. Kd1 Qd3+ 86. Ke1 Qe3+ 87. Kd1 Qd3+ 1/2-1/2

[Event "45th FIDE Olympiad 2024"]
[Site "Budapest"]
[Date "2024.09.16"]
[Round "6.110"]
[White "Ammar, Sedrani"]
[Black "Blomqvist, Erik"]
[Result "1-0"]
[ECO "E11"]
[WhiteElo "2226"]
[BlackElo "2491"]
[Annotator "RC"]
[PlyCount "139"]
[EventDate "2024.09.05"]
[EventType "team-tourn"]
[EventCountry "HUN"]
[SourceTitle "playchess.com"]
[Source "ChessBase"]
[SourceQuality "1"]
[WhiteTeam "United Arab Emirates"]
[BlackTeam "Sweden"]
[WhiteTeamCountry "UAE"]
[BlackTeamCountry "SWE"]
[TimeControl "40/5400+30:1800+30"]

1. d4 Nf6 2. c4 e6 3. Nf3 d5 4. g3 Bb4+ 5. Bd2 a5 6. Bg2 O-O 7. O-O dxc4 8. Qc2 Bxd2 9. Nbxd2 b5 10. a4 c6 11. Rfd1 Qe7 12. e4 Na6 13. Ne5 Bb7 14. Qc3 Rfc8 15. axb5 cxb5 16. Rxa5 b4 17. Qc2 c3 18. Ndc4 cxb2 19. Qxb2 Nc7 20. Rc5 Rd8 21. Re1 Rac8 22. Na5 Na6 23. Nac6 Bxc6 24. Nxc6 Qxc5 25. dxc5 Rxc6 26. Bf1 Rb8 27. Bxa6 Rxa6 28. Qe5 Rb7 29. Rd1 h6 30. Rb1 Rc6 31. Qd4 b3 32. Qd8+ Kh7 33. Qd3 Nd7 34. e5+ g6 35. Qf3 Nxe5 36. Qe4 Rb5 37. Qxe5 Rcxc5 38. Qf6 Rf5 39. Qc3 Rfc5 40. Qf3 Rf5 41. Qc6 h5 42. Kg2 b2 43. Qc2 Rfc5 44. Qe2 Re5 45. Qf3 Rf5 46. Qa3 Rb8 47. Rxb2 Rxb2 48. Qxb2 g5 49. h3 g4 50. hxg4 hxg4 51. Qd4 Rg5 52. Qf6 Rg7 53. Kf1 Kg8 54. Qd8+ Kh7 55. Qf8 Kg6 56. Ke2 Kf6 57. Qd8+ Kf5 58. Qe7 Kg6 59. Ke3 Kf5 60. Qf8 Kf6 61. Kf4 Rg6 62. Qd8+ Kg7 63. Ke5 Rh6 64. Kd6 Rf6 65. Ke7 Rf5 66. Qd4+ Kh6 67. Kf8 e5 68. Qe4 Kg5 69. Kg7 f6 70. Qe3+ 1-0

[Event "45th FIDE Olympiad 2024"]
[Site "Budapest"]
[Date "2024.09.16"]
[Round "6.111"]
[White "Lokander, Martin"]
[Black "Ahmed, Fareed"]
[Result "1-0"]
[ECO "E42"]
[WhiteElo "2469"]
[BlackElo "2061"]
[Annotator "TA"]
[PlyCount "49"]
[EventDate "2024.09.05"]
[EventType "team-tourn"]
[EventCountry "HUN"]
[SourceTitle "playchess.com"]
[Source "ChessBase"]
[SourceQuality "1"]
[WhiteTeam "Sweden"]
[BlackTeam "United Arab Emirates"]
[WhiteTeamCountry "SWE"]
[BlackTeamCountry "UAE"]
[TimeControl "40/5400+30:1800+30"]

{[%evp 13,49,22,13,12,18,31,25,16,14,0,20,17,18,17,32,36,27,23,25,16,74,83,689,689,692,674,761,658,698,701,889,878,866,840,1607,1590,1272,1256]} 1. d4 Nf6 2. c4 e6 3. Nc3 Bb4 4. e3 c5 5. Nge2 cxd4 6. exd4 d5 7. c5 Ne4 8. a3 Nxc3 9. Nxc3 Bxc3+ 10. bxc3 {White has an edge.} O-O 11. Bd3 b6 12. Qh5 {[%csl Gd3][%cal Rh5h7] [#]} g6 (12... f5 {simplifies} 13. cxb6 axb6 14. Qe2 Qd6) 13. Qh6 {Black must now prevent h4. Black is weak on the dark squares} Ba6 14. Bxa6 Nxa6 15. h4 (15. Bg5 f6 16. Bd2 bxc5 $14) 15... bxc5 16. h5 {[#] Intending hxg6 and mate.} Qf6 (16... Qe7 $11) 17. Rh3 $40 {[%mdl 128] hxg6 would now be deadly. White attacks with force.} cxd4 $2 {[%mdl 8192] This move loses the game for Black.} (17... Qe7 $16) 18. hxg6 $18 {White is clearly winning.} Qxg6 19. Rg3 ({Not} 19. cxd4 Kh8 $16) 19... dxc3 20. Bf4 {[%cal Of4e5] aiming for Be5!} Nc5 {[%cal Oe6e5]} 21. Bd6 {[%cal Od6c5]} Rfc8 22. Rxg6+ fxg6 23. Ke2 {Threatening mate with Rh1.} a5 24. Rh1 {[%csl Gh1][%cal Rh6h7]} Ra7 25. Qe3 {[%csl LRc3,LRc5] Weighted Error Value: White=0.18 (very precise) /Black=0.39.  Loses game:     	---       	Black=1      Mistake:       	---       	Black=1      OK:         	White=5     	Black=3      Best:        	White=1     	---} 1-0

[Event "45th FIDE Olympiad 2024"]
[Site "Budapest"]
[Date "2024.09.16"]
[Round "6.112"]
[White "Sultan, Ibrahim"]
[Black "Pantzar, Milton"]
[Result "0-1"]
[ECO "D45"]
[WhiteElo "2206"]
[BlackElo "2437"]
[Annotator "TA"]
[PlyCount "80"]
[EventDate "2024.09.05"]
[EventType "team-tourn"]
[EventCountry "HUN"]
[SourceTitle "playchess.com"]
[Source "ChessBase"]
[SourceQuality "1"]
[WhiteTeam "United Arab Emirates"]
[BlackTeam "Sweden"]
[WhiteTeamCountry "UAE"]
[BlackTeamCountry "SWE"]
[TimeControl "40/5400+30:1800+30"]

{[%evp 14,80,18,14,14,12,9,5,5,11,46,8,20,31,35,31,25,26,20,32,34,30,50,39,50,34,20,0,0,-18,-18,-22,-7,-10,-8,-19,-15,-16,-21,-5,0,0,6,3,65,-74,127,123,120,128,120,0,39,0,0,0,0,0,80,89,206,212,251,262,276,260,289,-29996,-29997]} 1. d4 d5 2. c4 e6 3. Nc3 Nf6 4. Nf3 c6 5. e3 Nbd7 6. Be2 Be7 7. b3 O-O 8. O-O b6 {[%cal Bb7b6,Bb6b5,Bb5b4][%mdl 32]} 9. Bb2 Bb7 10. Bd3 h6 {The position is equal.} 11. Qe2 dxc4 12. Bxc4 b5 13. Bd3 b4 14. Na4 c5 15. Nxc5 Bxc5 16. dxc5 Nxc5 17. Bc4 {A strong pair of Bishops.} Nfe4 18. Rfd1 Qe7 19. Rac1 Rfd8 20. Nd4 Rac8 (20... Nd6 $5) 21. f3 Nd6 {[%cal Be4d6,Bd6c8,Bc8e7,Be7d5][%mdl 32]} 22. Bd3 $1 Nxd3 23. Qxd3 Qg5 {aiming for ...e5.} 24. Rxc8 Nxc8 25. Qe2 Ne7 26. Nc2 {[%csl LRb4,LRd8]} Rxd1+ 27. Qxd1 Nd5 28. Qd4 {[%csl LRa7,LRb4]} Qg6 {[#]} (28... Nc3 $1 $11 29. Kf2 Nxa2) 29. g3 f5 $2 ({And not} 29... Qxc2 30. Qxg7#) (29... Nc3 $17 {keeps the pressure on.} 30. Bxc3 bxc3 (30... Qxc2 31. Qxg7#) 31. Qxc3 Bxf3) 30. Qxa7 $16 ({Much worse is} 30. Nxb4 $6 Nxb4 31. Qxb4 Bxf3 $11) 30... Qf7 31. Qb8+ Kh7 32. Kg2 ({White should try} 32. Qe5 $16) 32... Nc3 {[%cal Ob7f3] [#] White must now prevent ...Bxf3+!} 33. Bxc3 bxc3 $14 {[%mdl 4096] Endgame. KQB-KQN} 34. Qf4 g5 35. Qc4 g4 (35... Qd7 $1 $11 36. Qxc3 Qd1) 36. Qxc3 $16 gxf3+ (36... Bxf3+ $16 37. Kf2 Be4) 37. Kf2 $18 Bd5 38. Nb4 {Hoping for Nxd5.} Be4 39. Nd3 Qa7 40. Ne5 $4 {[%mdl 8192]} (40. a4 $18) 40... Qxa2+ {Weighted Error Value: White=0.34/Black=0.30.  Missed win:     	White=1     	---        Mistake:       	White=2     	Black=4      Inaccurate:     	White=2     	Black=2      OK:         	White=8     	Black=8      Best:        	White=5     	Black=2      Strong:       	White=1     	---} 0-1

[Event "45th FIDE Olympiad 2024"]
[Site "Budapest"]
[Date "2024.09.16"]
[Round "6.113"]
[White "Makhnev, Denis"]
[Black "Barrish, Daniel"]
[Result "1-0"]
[ECO "E16"]
[WhiteElo "2551"]
[BlackElo "2281"]
[Annotator "TA"]
[PlyCount "75"]
[EventDate "2024.09.05"]
[EventType "team-tourn"]
[EventCountry "HUN"]
[SourceTitle "playchess.com"]
[Source "ChessBase"]
[SourceQuality "1"]
[WhiteTeam "Kazakhstan"]
[BlackTeam "South Africa"]
[WhiteTeamCountry "KAZ"]
[BlackTeamCountry "RSA"]
[TimeControl "40/5400+30:1800+30"]

{[%evp 12,75,12,4,24,0,40,33,27,35,47,40,49,40,96,58,59,60,58,-9,0,0,75,62,106,100,94,86,81,29,118,42,36,41,65,68,75,78,87,87,100,64,632,322,303,331,336,0,314,0,360,352,339,353,371,204,346,305,1035,1001,2086,2079,2025,1937,1847,1729]} 1. d4 Nf6 2. c4 e6 3. Nf3 b6 4. g3 Bb7 5. Bg2 Bb4+ 6. Nbd2 O-O 7. O-O Be7 8. Re1 c5 9. e4 d5 {White is slightly better.} 10. cxd5 exd5 11. e5 Ne4 12. dxc5 Nxd2 ({Black should try} 12... Nxc5 $14 13. Nb3 Nc6) 13. Nxd2 bxc5 14. Nc4 {[%cal Oc4d6]} Bc6 15. Ne3 (15. Nd6 $1 $14 d4 16. Bf4) 15... d4 $11 16. Nf5 g6 (16... Bxg2 $11 17. Kxg2 Nc6) 17. Nh6+ $16 Kg7 18. Ng4 Re8 19. Bh6+ Kg8 20. Bf3 (20. Bxc6 $1 $16 Nxc6 21. Qf3) 20... Qb6 {[#]} (20... a5 $1 $11) 21. e6 ({White should play} 21. b4 $1 $16 {e6 is the strong threat.} Bxf3 22. Qxf3) 21... f6 $1 $14 {[%cal Ob6b7]} 22. Rc1 $36 {[%cal Ob2b4][%mdl 2048] White fights for an advantage.} a5 {[%cal Og8h8]} 23. h4 {[%cal Bh2h4,Bh4h5][%mdl 32] White is much more active. The black rooks are passive.} Qb7 {White leaves nothing to chance now.} 24. Bxc6 Qxc6 {[#]} 25. h5 $1 {aiming for Qd3. Really sharp!} Qd5 (25... Na6 26. hxg6) 26. Ne3 Qxe6 {[%mdl 8192]} (26... Qxh5 $14 27. Qxh5 gxh5) 27. Ng4 Qf7 {[#]} 28. Bg5 $1 {[%mdl 512]} Kf8 29. Bh6+ Kg8 30. Bg5 {Hoping for Nh6+.} Kf8 $1 {[#]} 31. Rxe7 $1 {[%mdl 512]} Rxe7 32. Nxf6 {Strongly threatening Bh6+.} Re5 {[#]} 33. Nxh7+ Qxh7 (33... Kg8 $142 34. Nf6+ Kg7) 34. Qf3+ $18 Rf5 $2 (34... Qf7 35. Bh6+ (35. Qxa8 Rxg5 36. Qxb8+ Kg7 $16) 35... Ke7 36. Qxa8 Nd7) 35. Qxa8 {White is clearly winning.} Rxg5 36. Qxb8+ Kg7 37. Re1 {White threatens Re7+ and mate.} Kh6 38. Re8 {Weighted Error Value: White=0.64/Black=0.34.  Loses game:     	---       	Black=1      Mistake:       	White=4     	Black=5      Inaccurate:     	White=3     	Black=3      OK:         	White=10    	Black=4      Best:        	White=5     	Black=4      Strong:       	---       	Black=2} 1-0

[Event "45th FIDE Olympiad 2024"]
[Site "Budapest"]
[Date "2024.09.16"]
[Round "6.114"]
[White "Karsten, Jan"]
[Black "Nogerbek, Kazybek"]
[Result "0-1"]
[ECO "C88"]
[WhiteElo "2311"]
[BlackElo "2519"]
[Annotator "TA"]
[PlyCount "40"]
[EventDate "2024.09.05"]
[EventType "team-tourn"]
[EventCountry "HUN"]
[SourceTitle "playchess.com"]
[Source "ChessBase"]
[SourceQuality "1"]
[WhiteTeam "South Africa"]
[BlackTeam "Kazakhstan"]
[WhiteTeamCountry "RSA"]
[BlackTeamCountry "KAZ"]
[TimeControl "40/5400+30:1800+30"]

{[%evp 14,40,18,13,62,72,70,77,82,52,55,-193,-191,-218,-222,-392,-400,-393,-385,-587,-592,-610,-622,-990,-981,-980,-972,-970,-944]} 1. e4 e5 2. Nf3 Nc6 3. Bb5 a6 4. Ba4 Nf6 5. O-O Be7 6. Re1 b5 7. Bb3 O-O 8. a4 {[%cal Ba2a4,Ba4b5,Bb5c6][%mdl 32]} d5 (8... b4 $11 {was preferrable.}) 9. axb5 $14 dxe4 10. bxc6 exf3 {White is better.} 11. Qxf3 {[%cal Ob1c3]} (11. Rxe5 Bd6 12. Re1 Ng4 13. Qxf3 Nxh2 $17 (13... Bxh2+ 14. Kh1 $11)) 11... e4 12. Qg3 {[#] White does not recover from this.} (12. Qe2 $14) 12... Ng4 $1 $19 13. Rxe4 Bh4 14. Qf4 (14. Rxg4 Bxg3 15. Rxg3) 14... Bxf2+ 15. Kh1 Bc5 16. d4 (16. Re2 {is the only way for White.} Bd6 17. Qf1) 16... Bd6 {Black is clearly winning.} 17. Qf3 Qh4 {[%csl Gd6,Gg4][%cal Rh4h2] [#]} ({Weaker is} 17... Nxh2 18. Qf2 $17) 18. Kg1 {h3 is the strong threat.} Qxh2+ ({Less strong is} 18... Bxh2+ 19. Kf1 $17) 19. Kf1 Qh1+ 20. Ke2 Qxc1 {Weighted Error Value: White=1.10/Black=0.03 (flawless) .  Loses game:     	White=1     	---        Mistake:       	White=2     	---        Inaccurate:     	White=2     	---        OK:         	White=1     	Black=2      Best:        	White=2     	Black=6      Strong:       	---       	Black=1} 0-1

[Event "45th FIDE Olympiad 2024"]
[Site "Budapest"]
[Date "2024.09.16"]
[Round "6.115"]
[White "Suleymenov, Alisher"]
[Black "Levitan, Caleb Levi"]
[Result "1-0"]
[ECO "D02"]
[WhiteElo "2484"]
[BlackElo "2193"]
[Annotator "TA"]
[PlyCount "69"]
[EventDate "2024.09.05"]
[EventType "team-tourn"]
[EventCountry "HUN"]
[SourceTitle "playchess.com"]
[Source "ChessBase"]
[SourceQuality "1"]
[WhiteTeam "Kazakhstan"]
[BlackTeam "South Africa"]
[WhiteTeamCountry "KAZ"]
[BlackTeamCountry "RSA"]
[TimeControl "40/5400+30:1800+30"]

{[%evp 9,69,29,50,42,43,30,46,8,15,13,11,17,32,0,26,0,12,2,19,3,37,37,49,52,108,93,348,346,609,249,262,262,283,293,278,277,271,269,504,525,511,520,497,504,502,516,517,470,534,534,602,619,585,512,511,511,572,569,571,562,563,578]} 1. Nf3 {[%cal Bg1f3,Bf3e5,Be5c6][%mdl 32]} d5 2. g3 Nd7 {[%cal Bb8d7,Bd7b6,Bb6d7][%mdl 32]} 3. d4 Ngf6 4. Bg2 Nb6 5. O-O h6 6. Ne5 {[%cal Oc2c4]} Bf5 7. c4 e6 8. c5 {White is slightly better.} Nbd7 9. c6 bxc6 10. Nxc6 Qc8 11. Nc3 $36 {[%mdl 2048] White is pushing.} Qb7 12. Ne5 c6 13. Nxd7 Nxd7 14. e4 Bh7 15. Re1 Be7 16. Qg4 {Strongly threatening exd5.} Bg6 {[#]} ({Black should play} 16... Kf8 $14) 17. exd5 $1 $16 cxd5 {[%mdl 8192] This move loses the game for Black.} (17... exd5 $16 18. Qe2 Nb6) 18. Rxe6 $1 $18 Nb6 (18... Nf6 19. Rxf6 Bxf6 20. Nxd5 $18 (20. Bxd5 Qc8 $18)) (18... fxe6 19. Qxg6+ Kd8 20. Qxe6 (20. Qxg7 Bf6 $18) 20... Qb6) 19. Re5 (19. Rxg6 $142 h5 20. Rxb6 Qxb6 21. Qf3 (21. Qxg7 Bf6 $18)) 19... Rd8 20. h4 {[%cal Bh2h4,Bh4h5][%mdl 32] h5 is the strong threat.} Kf8 21. h5 Bh7 22. b3 Bd6 23. Re2 (23. Bxd5 Qd7 24. Qxd7 Rxd7 $16) 23... g5 $2 (23... Qd7 24. Qxd7 Rxd7 25. Nxd5 (25. Bxd5 Nxd5 26. Nxd5 f6 $16) 25... Nxd5) 24. hxg6 {White is clearly winning.} Bxg6 25. Qh4 Kg7 {[#]} 26. Bxh6+ $1 {[%mdl 512]} Rxh6 27. Qxd8 Qc6 {[%cal Oh6h8]} 28. Re3 Bc7 {[%cal Bd6c7,Bc7d8,Bd8f6][%mdl 32]} 29. Qe8 Qf6 30. Qe7 ({Worse is} 30. Nxd5 Nxd5 31. Rf3 (31. Bxd5 $2 {is the wrong capture.} Qxd4 32. Bc6 Qxa1+ 33. Re1 Qf6 $19) 31... Qxd4 $17) 30... Bd8 31. Qxf6+ Bxf6 32. Rd1 Rh5 33. f4 Rh8 34. g4 Bc2 35. Rd2 {Weighted Error Value: White=0.25 (precise) /Black=0.48.  Loses game:     	---       	Black=1      Mistake:       	White=1     	Black=3      Inaccurate:     	White=1     	Black=2      OK:         	White=15    	Black=11     Strong:       	White=2     	---} 1-0